Cogmind - Beta 9.4 @@@ ROGUE MODE // 2020.03.20 @ 17:19:44 Player: Trione Result: Destroyed by G-47 Trooper with Particle Gun Performance ------------- Evolutions (0) 0 Regions Visited (4) 800 Robots Destroyed (43) 215 Value Destroyed (897) 897 Prototype IDs (13) 260 Alien Tech Used (0) 0 Bonus (0) 0 TOTAL SCORE: 2172 Bonus ------- None Cogmind --------- Core Integrity 0/250 Matter 268/300 Energy 125/125 System Corruption 0% Temperature Cool (36) Movement Treading (200) Ox2 Location -9/Mines Parts ------- > --- POWER (1) -------- Light Ion Engine > --- PROPULSION (2) --- Light Treads Light Treads > --- UTILITY (2) ------ Humpback > --- WEAPON (2) ------- Light Cannon Light Cannon > --- INVENTORY (24) --- Light Treads Armored Wheel Armored Wheel Medium Storage Unit Medium Storage Unit Light Armor Plating Light Armor Plating Light Armor Plating EM Pulse Gun Shock Rifle Light Cannon Rocket Launcher Datajack Katana Peak State ------------ > --- POWER ------------ Ion Engine > --- PROPULSION ------- Armored Wheel Armored Wheel > --- UTILITY ---------- Small Storage Unit Medium Storage Unit > --- WEAPON ----------- Heavy Assault Rifle Light Cannon > --- INVENTORY -------- Light Ion Engine Light Treads Light Treads Light Armor Plating Light Armor Plating Light Armor Plating EM Pulse Gun Beam Cannon Light Cannon Datajack [Rating: 11] Favorites ----------- Power Light Ion Engine Engine Light Ion Engine Power Core Light Nuclear Core Propulsion Light Treads Treads Light Treads Wheel Wheel Utility Medium Storage Unit Storage Medium Storage Unit Weapon Light Cannon Energy Gun Small Laser Energy Cannon Beam Cannon Ballistic Gun Light Assault Rifle Ballistic Cannon Light Cannon Launcher Rocket Launcher Special Melee Weapon Datajack Build | -11 -10 -10 -10 -9 ------- Run | Scr Mat Min Exi Min Slots Evolved . | . . . . . Power . | . . . . . Propulsion . | . . . . . Utility . | . . . . . Weapon . | . . . . . Parts Attached 39 | 6 26 2 2 3 Power 3 | 1 2 . . . Engine 2 | 1 1 . . . Core 1 | . 1 . . . Reactor . | . . . . . Propulsion 20 | 2 17 1 . . Treads 9 | . 8 1 . . Leg . | . . . . . Wheel 11 | 2 9 . . . Hover . | . . . . . Flight . | . . . . . Utility 4 | 1 1 1 1 . Device . | . . . . . Storage 4 | 1 1 1 1 . Processor . | . . . . . Hackware . | . . . . . Protection . | . . . . . Artifact . | . . . . . Weapon 12 | 2 6 . 1 3 Energy Gun 1 | 1 . . . . Energy Cannon 1 | . 1 . . . Ballistic Gun 2 | 1 1 . . . Ballistic Cannon 6 | . 4 . . 2 Launcher 1 | . . . . 1 Special Weapon . | . . . . . Impact Weapon . | . . . . . Slashing Weapon . | . . . . . Piercing Weapon . | . . . . . Special Melee Weapon 1 | . . . 1 . Unidentified Prototypes . | . . . . . Parts Lost 3 | . 2 1 . . Power 1 | . 1 . . . Propulsion 1 | . . 1 . . Utility . | . . . . . Weapon 1 | . 1 . . . Highest Loss Streak 1 | . 1 1 . . Average Slot Usage (%) 95 | . 97 100 88 85 Engine 13 | . 12 14 14 14 Treads 21 | . 11 28 28 28 Wheel 6 | . 16 . . . Storage 23 | . 25 28 17 14 Energy Cannon 1 | . 5 . . . Ballistic Gun 3 | . 9 . . . Ballistic Cannon 19 | . 11 28 15 26 Special Melee Weapon 2 | . . . 12 2 Naked Turns . | . . . . . Heaviest Build 89 | 11 23 25 87 89 Greatest Support 40 | 20 40 40 40 40 Greatest Overweight (x) 2 | . 1 . 2 2 Average Overweight (x) . | . . . 1 2 Largest Inventory Capacity 24 | 6 10 12 24 24 Average Capacity 13 | 5 9 11 20 24 Most Carried 14 | 4 10 12 13 14 Average Carried 10 | 2 9 10 11 13 Final Capacity 24 | 6 10 12 24 24 Final Carried 14 | 4 10 11 13 14 Class Distribution -------------------- 76% | Mutant 23% | Hauler-Mutant Dominant Class ---------------- Mutant | -10/Materials Mutant | -10/Mines Hauler-Mutant | -10/Exiles Hauler-Mutant | -9/Mines Resources | -11 -10 -10 -10 -9 ----------- Run | Scr Mat Min Exi Min Matter Collected 1322 | 265 688 228 . 141 Remotely . | . . . . . Salvage Created 1303 | 92 644 309 . 258 Parts 70 | . 43 13 . 14 Haulers Intercepted 2 | . 2 . . . Recyclers Shooed 3 | . 3 . . . Parts Field Recycled . | . . . . . Retrieved Matter . | . . . . . Parts Self-Destructed . | . . . . . Prevented . | . . . . . Kills | -11 -10 -10 -10 -9 ------- Run | Scr Mat Min Exi Min Combat Hostiles Destroyed 27 | . 16 4 . 7 Guns 5 | . 5 . . . Cannons 19 | . 11 4 . 4 AOE 3 | . . . . 3 Classes Destroyed 9 | 1 6 1 . 1 Worker 1 | . 1 . . . Tunneler 4 | . . 4 . . Hauler 2 | . 2 . . . Recycler 7 | 1 2 2 . 2 Operator 1 | . 1 . . . Watcher 1 | . 1 . . . Swarmer 9 | . 6 . . 3 Grunt 17 | . 10 4 . 3 Duelist 1 | . . . . 1 Best Kill Streak 4 | 1 4 4 . 3 Combat Bots Only 3 | . 3 2 . 3 Max Kills in Single Turn 3 | 1 1 1 . 3 Gunslinging . | . . . . . Exploded 3 | . . . . 3 Melee . | . . . . . Uniques/NPCs Destroyed . | . . . . . Combat | -11 -10 -10 -10 -9 -------- Run | Scr Mat Min Exi Min Damage Taken 1416 | . 966 266 . 184 Core 252 | . 147 38 . 67 Absorbed by Shields . | . . . . . Core Remaining (%) 100 | 100 . . . . Volleys Fired 150 | 5 104 26 . 15 Largest 2 | 2 2 2 . 2 Hottest 95 | 60 95 70 . 70 Shots Fired 284 | 10 193 52 . 29 Gun 100 | 10 90 . . . Cannon 183 | . 103 52 . 28 Launcher 1 | . . . . 1 Special . | . . . . . Kinetic 243 | 5 158 52 . 28 Thermal 40 | 5 35 . . . Explosive 1 | . . . . 1 Electromagnetic . | . . . . . Robot Hit Streak 17 | 3 17 7 . 8 Robot Miss Streak 4 | 1 4 3 . 2 Penetration Max . | . . . . . Secondary Targets . | . . . . . Shots Hit Robots 183 | 7 124 28 5 19 Core Hits 65 | 2 41 12 . 10 Critical Hits . | . . . . . Critical Kills . | . . . . . Critical Parts Destroyed . | . . . . . Melee Attacks 6 | . . . 6 . Impact . | . . . . . Slashing . | . . . . . Piercing . | . . . . . Sneak Attacks 4 | . . . 4 . Combat Hostiles . | . . . . . Follow-up Attacks . | . . . . . Damage Inflicted 2624 | 64 1613 472 . 475 Guns 680 | 64 616 . . . Cannons 1803 | . 997 472 . 334 Explosions 141 | . . . . 141 Melee . | . . . . . Ramming . | . . . . . Kinetic 2042 | 20 1216 472 . 334 Thermal 441 | 44 397 . . . Explosive 141 | . . . . 141 Electromagnetic . | . . . . . Impact . | . . . . . Slashing . | . . . . . Piercing . | . . . . . Highest Corruption . | . . . . . Average Corruption . | . . . . . Corruption Purged . | . . . . . Overload Shots . | . . . . . Overflow Damage 36 | . 23 . . 13 Projectiles 36 | . 23 . . 13 Explosions . | . . . . . Melee . | . . . . . Knockbacks 24 | . 9 5 . 10 Impact . | . . . . . Kinetic 18 | . 8 4 . 6 Secondary 6 | . 1 1 . 4 Self-Inflicted Damage . | . . . . . Shots . | . . . . . Rammed . | . . . . . Targets Rammed . | . . . . . Kicked . | . . . . . Crushed . | . . . . . Highest Temperature 270 | 20 270 150 . 87 Average Temperature 68 | 15 81 53 . 35 Received Heat Transfer 525 | . 360 138 . 27 Effects 1 | . 1 . . . Interference 1 | . 1 . . . Siege Activations . | . . . . . Robots Corrupted . | . . . . . Combat Hostiles . | . . . . . Parts Fried . | . . . . . Impact Corruptions . | . . . . . Robots Melted . | . . . . . Combat Hostiles . | . . . . . Parts Melted 2 | . 2 . . . Heat Transferred 967 | 100 867 . . . Parts Sabotaged . | . . . . . Parts Stolen . | . . . . . Parts Stripped . | . . . . . Power Chain Reactions . | . . . . . Missiles Intercepted . | . . . . . Alert | -11 -10 -10 -10 -9 ------- Run | Scr Mat Min Exi Min Peak Influence 239 | 5 239 75 . 170 Average Influence 58 | 1 93 18 . 74 Maximum Alert Level 1 | . 1 . . . Low Security (%) 99 | 100 98 100 . 100 Level 1 . | . 1 . . . Level 2 . | . . . . . Level 3 . | . . . . . Level 4 . | . . . . . Level 5 . | . . . . . High Security . | . . . . . Max Security . | . . . . . Squads Dispatched 1 | . 1 . . . Investigation . | . . . . . Extermination . | . . . . . Reinforcement 1 | . 1 . . . Assault . | . . . . . Garrison . | . . . . . Intercept . | . . . . . Construction Impeded . | . . . . . Haulers Reinforced . | . . . . . Stealth | -11 -10 -10 -10 -9 --------- Run | Scr Mat Min Exi Min Distress Signals 3 | . 3 . . . Communications Jammed . | . . . . . Distress Signals . | . . . . . Times Spotted 51 | . 36 5 . 10 Peak Tracking Total 4 | . 4 2 . 3 Tactical Retreats 8 | . 6 1 . 1 Traps | -11 -10 -10 -10 -9 ------- Run | Scr Mat Min Exi Min Traps Triggered 1 | . 1 . . . Indirectly . | . . . . . Trap Hack Attempts . | . . . . . Triggered . | . . . . . Disarmed . | . . . . . Reprogrammed . | . . . . . Reused . | . . . . . Traps Extracted . | . . . . . Installed . | . . . . . Triggered . | . . . . . Machines | -11 -10 -10 -10 -9 ---------- Run | Scr Mat Min Exi Min Machines Disabled 1 | . . 1 . . Max in Single Turn 1 | . . 1 . . Machines Sabotaged . | . . . . . Garrisons Compromised . | . . . . . Overloaded Fab Kills . | . . . . . Fab Network Shutdowns . | . . . . . Hacking | -11 -10 -10 -10 -9 --------- Run | Scr Mat Min Exi Min Machines Accessed 7 | . 5 1 1 . Terminals 5 | . 5 . . . Fabricators . | . . . . . Repair Stations . | . . . . . Recycling Units . | . . . . . Scanalyzers . | . . . . . Garrison Access . | . . . . . Total Hacks 37 | . 13 1 23 . Successful 32 | . 8 1 23 . Failed 5 | . 5 . . . Catastrophic . | . . . . . Database Lockouts . | . . . . . Manual 9 | . 9 . . . Terminals 13 | . 13 . . . Fabricators . | . . . . . Repair Stations . | . . . . . Recycling Units . | . . . . . Scanalyzers . | . . . . . Garrison Access . | . . . . . Terminal Hacks 27 | . 3 1 23 . Record 23 | . . . 23 . Open Door 1 | . . 1 . . Terminal Index 1 | . 1 . . . Locate Traps 1 | . 1 . . . Zone Layout 1 | . 1 . . . Fabricator Hacks . | . . . . . Repair Station Hacks . | . . . . . Recycling Unit Hacks . | . . . . . Scanalyzer . | . . . . . Garrison Access Hacks . | . . . . . Unauthorized Hacks 12 | . 12 . . . Terminals 5 | . 5 . . . Track 3 | . 3 . . . Botnet 2 | . 2 . . . Fabricators . | . . . . . Repair Stations . | . . . . . Recycling Units . | . . . . . Scanalyzers . | . . . . . Garrison Access . | . . . . . Data Cores Recovered . | . . . . . Used . | . . . . . Hacking Detections 4 | . 4 . . . Full Trace Events . | . . . . . Feedback Events . | . . . . . Feedback Blocked . | . . . . . Robot Schematics Acquired . | . . . . . Robots Built . | . . . . . Matter . | . . . . . Time . | . . . . . Total Robot Build Rating . | . . . . . Part Schematics Acquired . | . . . . . Parts Built . | . . . . . Matter . | . . . . . Time . | . . . . . Total Part Build Rating . | . . . . . Parts Repaired . | . . . . . Time . | . . . . . Parts Recycled . | . . . . . Recycled Matter . | . . . . . Retrieved Matter . | . . . . . Retrieved Components . | . . . . . Parts Scanalyzed . | . . . . . Part Schematics Acquired . | . . . . . Parts Damaged . | . . . . . Bothacking | -11 -10 -10 -10 -9 ------------ Run | Scr Mat Min Exi Min Used RIF Installer . | . . . . . Robots Hacked 4 | . . . 4 . Non-combat 3 | . . . 3 . Combat 1 | . . . 1 . Robot Hacks Applied 4 | . . . 4 . parse_system 4 | . . . 4 . Relay Couplers Released . | . . . . . Robots Rewired . | . . . . . Allies Hacked . | . . . . . Hacks Repelled . | . . . . . Allies | -11 -10 -10 -10 -9 -------- Run | Scr Mat Min Exi Min Total Allies . | . . . . . Largest Group . | . . . . . Highest-Rated Group . | . . . . . Highest-Rated Ally . | . . . . . Total Orders . | . . . . . Ally Attacks . | . . . . . Total Damage . | . . . . . Kills . | . . . . . Allies Corrupted . | . . . . . Allies Melted . | . . . . . Intel | -11 -10 -10 -10 -9 ------- Run | Scr Mat Min Exi Min Robot Analysis Total . | . . . . . Derelict Logs Recovered . | . . . . . Drone Launches . | . . . . . Drone Recoveries . | . . . . . Exploration | -11 -10 -10 -10 -9 ------------- Run | Scr Mat Min Exi Min Turns Passed 3435 | 73 1244 1160 603 355 Spaces Moved 1974 | 58 787 666 310 153 Core 2 | 2 . . . . Treads 1352 | . 223 666 310 153 Legs . | . . . . . Wheels 620 | 56 564 . . . Hover . | . . . . . Flight . | . . . . . Fastest Speed 50 | 50 80 160 160 200 Average Speed 144 | 78 108 160 186 200 Slowest Speed 200 | 80 160 160 200 200 Overloaded Moves . | . . . . . Propulsion Burnouts . | . . . . . Robots Hopped . | . . . . . Cave-ins Triggered . | . . . . . Exploration Rate (%) 57 | 3 89 94 64 36 Regions Visited 4 Branch Regions 3 Pre-discovered Areas 1 | . . . 1 . Known Exits Taken . | . . . . . Unknown Exits Taken 4 | 1 1 1 1 . Scrap Searched 3 | . . 3 . . Spaces Dug . | . . . . . Terrain Destroyed 8 | . . . . 8 Melee . | . . . . . Projectile . | . . . . . AOE 8 | . . . . 8 Actions | -11 -10 -10 -10 -9 --------- Run | Scr Mat Min Exi Min Total 2277 | 72 995 710 328 172 Wait 64 | . 52 12 . . Move 1970 | 57 786 665 309 153 Hop . | . . . . . Pick Up 31 | 4 14 3 9 1 Fast Attach 11 | 6 4 . 1 . Attach 5 | . 4 1 . . Detach 1 | . 1 . . . Swap 23 | . 18 1 1 3 Drop 16 | . 12 2 2 . Fire 150 | 5 104 26 . 15 Melee 6 | . . . 6 . Ram . | . . . . . Kick . | . . . . . Crush . | . . . . . Escape Stasis . | . . . . . Rewire . | . . . . . Trap . | . . . . . Miscellaneous . | . . . . . Route ------- -11/Scrapyard -10/Materials (discovered 4 exits: [*Mat x2] / *Min x2) -10/Mines (discovered 3 exits: [*Mat x2] / *Exi) -10/Exiles -9/Mines History --------- Turn | Location | Event 20 | -11/Scrapyard | Discovered new exit (range 15) 74 | -11/Scrapyard | Entered Materials 303 | -10/Materials | Build established: Mutant 529 | -10/Materials | Discovered new exit (range 9) 618 | -10/Materials | Discovered new exit (range 10) 840 | -10/Materials | Discovered new exit (range 16) 1023 | -10/Materials | Core integrity fell below 50% 1046 | -10/Materials | Discovered new exit (range 13) 1318 | -10/Materials | Entered Mines 1420 | -10/Mines | Met a Derelict who couldn't figure out how to use a Trap Extractor 1458 | -10/Mines | Discovered new exit (range 10) 1481 | -10/Mines | Received a Rocket Launcher from a helpful Derelict 1534 | -10/Mines | Deemed a non-threat by the Exiles lab entrance 2207 | -10/Mines | Discovered new exit (range 11) 2472 | -10/Mines | Discovered new exit (range 5) 2478 | -10/Mines | Entered Exiles 2518 | -10/Exiles | Met 8R-AWN 2552 | -10/Exiles | Met EX-HEX 2727 | -10/Exiles | Met EX-DEC 2797 | -10/Exiles | Learned location of Zion (-6) 2833 | -10/Exiles | Met EX-BIN 2934 | -10/Exiles | Build established: Hauler-Mutant 3061 | -10/Exiles | Discovered new exit (range 11) 3081 | -10/Exiles | Entered Mines 3154 | -9/Mines | Core integrity fell below 20% 3436 | -9/Mines | Destroyed by G-47 Trooper with Particle Gun Last Messages --------------- 03217_ Acquired 56 matter. 03218_ R-06 Scavenger collects Lgt. Ion Engine. 03221_ R-06 Scavenger destroyed. 03224_ Acquired 8 matter. 03353_ S-10 Pest destroyed. 03353_ Destroyed Flight Unit. 03353_ S-10 Pest destroyed. 03367_ Acquired 3 matter. 03373_ Acquired 10 matter. 03375_ Acquired 2 matter. 03385_ U-05 Engineer builds a Wall. 03389_ U-05 Engineer lays Concrete. 03397_ U-05 Engineer builds a Wall. 03397_ U-05 Engineer lays Concrete. 03408_ U-05 Engineer builds a Wall. 03410_ U-05 Engineer lays Concrete. 03418_ U-05 Engineer builds a Wall. 03418_ U-05 Engineer lays Concrete. 03434_ G-34 Mercenary knocked back. 03434_ G-34 Mercenary destroyed. Map ----- +----------------------------------------------------+ | | | | | | | | | | | | | | | | | | | | | | | | | ?????????????????????????????????????????????????? | | ??????####???????????????????????????????????????? | | ?????## #####??????????????????????????????????? | | ?????# ##?????????????????????????????????? | | ????## #?????????????????????????????????? | | ????# ##????????????????????????????????? | | ????# """ ##???????????????????????????????? | | ????## """ ##??????????????????????????????? | | ?????## """ ##?????????#???????????????????? | | ??????## ## ##??????? #???????????????????? | | ???????# #### ######?? #???????????????????? | | ???????## ##?## ###? #???????????????????? | | ???####?######## [ ### #???????????????????? | | ??## ##?# *u @g% #???????????????????? | | ??# ### = * ######???????????????????? | | ??? ## ##### [ ##???????????????????????? | | ???? ## #???# # #???????????????????????? | | ????# ## #??# #####???????????????????????? | | ???## ## #??# ###??????????????????????????? | | #### ## #??## ##????????????????????????????? | | ## ##??####?????????????????????????????? | | # ##??????????????????????????????????? | | ## #??????????????????????????????????? | | ?# ##?????????????????????????????????? | | ?# #?????????????????????????????????? | | ?# ##?###????????????????????????????? | | ?## ## ##???????????????????????????? | | ??## ## #???????????????????????????? | | ???######### #???????????????????????????? | | ???????????#### ##???????????????????????????? | | ???####???????# #????????????????????????????? | | ??## ##????## ##????????????????????????????? | | ??# ##??## ##?????????????????????????????? | | ??# #### ##?????????????????????????????? | | ???# ###???????????????????????????? | | ????# #???????????????????????????? | | #???# #??????????????????????????? | | ##??# #??????????????????????????? | +----------------------------------------------------+ Best States ------------- Heat Dissipation 25 Energy Generation 14 Energy Capacity 250 Matter Stores 300 Matter Capacity 300 Sight Range 16 Terrain Scan Density 10 Evasion (%) 44 Recoil Reduction 2 Item Schematics ----------------- None Robot Schematics ------------------ None Fabricated ------------ Nothing Alien Tech Used ----------------- None Achievements -------------- None Challenges ------------ None Game ------ Seed AlertRemoteClaw Manual? 0 Play Time 00:23:45 Cumulative 971.6 hours Start 2020.03.20 @ 16:52:30 End 2020.03.20 @ 17:19:44 Sessions 1 Manual Loads 0 Difficulty Rogue Special Mode None Game No. 362 Rogue 362 Adventurer 0 Explorer 0 Win Type - Total 24 Types 13/1/7/0/0/0/3 Lore% 96 Gallery% 97 Achievement% 83 Wizard Run 0 Options --------- ASCII 0 Keyboard 1 Movement Vi Keybinds 0 Fullscreen 0 Font 12/Crisp Map View 76x50 Tactical HUD 1 Map Filters NONE Filters NONE Steam 1 RUN: 06cf8d8a-ab22-43c6-9a66-f23e882d7812